bitfinex/quotes_BTCUSD_20251202
["timestamp","ask_amount","ask_price","bid_price","bid_amount"]
[1764687625456,0.49389651,89453.0,89451.0,0.22358397]
[1764687625675,0.04593,89460.0,89452.0,0.63050001]
[1764687625949,0.09608,89459.0,89452.0,0.63050001]
[1764687626566,0.49389651,89470.0,89461.0,0.01117805]
[1764687626769,0.01117805,89461.0,89451.0,0.00038136]
[1764687626978,0.01117892,89454.0,89451.0,1.36e-06]
[1764687627181,0.0111798,89447.0,89428.0,0.01808]
[1764687627391,0.0111798,89447.0,89430.0,0.630501]
[1764687627392,0.00038076,89447.0,89430.0,0.630501]
[1764687627612,0.49389651,89440.0,89429.0,0.630501]
[1764687628017,0.14201,89439.0,89429.0,0.630501]
[1764687628227,0.01118318,89420.0,89401.0,0.630501]
[1764687628455,0.01118318,89420.0,89389.0,0.630501]
[1764687628456,0.01118493,89406.0,89389.0,0.630501]
[1764687628690,0.01118418,89412.0,89389.0,0.630501]
[1764687628691,0.03009138,89540.0,89473.0,0.03515]
[1764687628890,0.0603494,89558.0,89517.0,0.01117106]
[1764687628891,0.04593,89547.0,89517.0,0.01117106]
[1764687629092,0.04593,89547.0,89528.0,1.794132]
[1764687629093,0.24090992,89543.0,89528.0,1.794132]
[1764687629298,0.24090992,89543.0,89516.0,0.03354579]
[1764687629504,0.24090992,89543.0,89519.0,1.794132]
[1764687629505,0.23455284,89533.0,89519.0,1.794132]
[1764687629712,0.09608,89532.0,89523.0,1.794132]
[1764687629925,0.01868,89531.0,89526.0,0.323]
[1764687630140,0.01116956,89529.0,89505.0,0.22345051]
[1764687630347,0.09608,89530.0,89516.0,0.323]
[1764687630570,0.02984968,89528.0,89518.0,0.323]
[1764687630737,0.01868,89528.0,89518.0,0.323]
[1764687630954,0.09608,89527.0,89518.0,0.323]
[1764687631154,0.11476,89527.0,89518.0,0.323]
[1764687631305,0.02984993,89526.0,89518.0,0.323]
[1764687631505,0.02984993,89526.0,89494.0,0.01117393]
[1764687631506,0.01117181,89511.0,89497.0,0.35655958]
[1764687631711,0.01117118,89516.0,89493.0,0.289326]
[1764687631932,0.01117218,89508.0,89496.0,0.323]
[1764687632109,0.2234487,89506.0,89498.0,0.323]
[1764687632315,0.09608,89507.0,89502.0,0.323]
[1764687632517,0.16069,89506.0,89503.0,0.289326]
[1764687632731,0.01117293,89502.0,89490.0,0.323]
[1764687632933,0.49389651,89500.0,89493.0,0.289326]
[1764687633357,0.08971,89499.0,89493.0,0.289326]
[1764687633598,0.08971,89499.0,89473.0,0.289326]
[1764687633599,0.0111743,89491.0,89473.0,0.289326]
[1764687633788,0.49389651,89490.0,89466.0,0.289326]
[1764687633991,0.01117468,89488.0,89472.0,0.289326]
[1764687634163,0.49389651,89490.0,89466.0,0.289326]
[1764687634532,0.49389651,89490.0,89473.0,0.289326]
[1764687634732,0.49389651,89490.0,89472.0,0.2235332]
[1764687634733,0.49389651,89490.0,89477.0,0.289326]
[1764687634938,0.50507094,89490.0,89477.0,0.289326]
[1764687635168,0.01117518,89484.0,89463.0,0.22355517]
[1764687635373,0.49389651,89480.0,89470.0,0.22353646]
[1764687635576,0.49389651,89480.0,89474.0,0.289326]
[1764687635756,0.49389651,89480.0,89462.0,0.01117793]
[1764687635757,0.04692,89463.0,89462.0,0.2235586]
[1764687635987,0.15621,89463.0,89462.0,0.5128846]
[1764687636429,0.09065,89478.0,89477.0,0.22352112]
[1764687636658,0.01864,89479.0,89467.0,0.2999333]
[1764687636889,0.01864,89479.0,89466.0,0.01117743]
[1764687636890,0.04692,89485.0,89484.0,0.51225964]
[1764687637102,0.047301,89485.0,89484.0,0.288756]
[1764687637332,0.047301,89485.0,89468.0,0.01117718]
[1764687637333,0.047301,89485.0,89470.0,0.288756]
[1764687637562,0.047301,89485.0,89447.0,0.44718921]
[1764687637563,0.22353148,89473.0,89444.0,0.01118017]
[1764687637823,0.22353148,89473.0,89424.0,0.0348]
[1764687637824,0.03477,89448.0,89434.0,0.188756]
[1764687638031,0.03477,89448.0,89426.0,0.01118243]
[1764687638032,0.01864,89447.0,89430.0,0.22363792]
[1764687638237,0.49389651,89444.0,89426.0,0.01118243]
[1764687638440,0.09065,89443.0,89439.0,0.188756]
[1764687638616,0.09065,89443.0,89435.0,0.188756]
[1764687638835,0.09065,89443.0,89436.0,0.22362359]
[1764687639070,0.09065,89443.0,89439.0,0.188756]
[1764687639071,0.09103076,89443.0,89439.0,0.188756]
[1764687639271,0.01902076,89443.0,89442.0,0.41236459]
[1764687639471,0.00038076,89443.0,89442.0,0.73536459]
[1764687640915,0.00038076,89443.0,89442.0,0.79788758]
[1764687642177,0.00038076,89443.0,89442.0,0.89533758]
[1764687642830,0.00237341,89500.0,89493.0,0.22348116]
[1764687643042,0.00237341,89500.0,89499.0,0.41222218]
[1764687643663,0.09302341,89500.0,89499.0,0.41222218]
[1764687643878,0.00237341,89500.0,89499.0,0.41222218]
[1764687644092,0.04692,89532.0,89522.0,0.01117043]
[1764687644303,0.04692,89532.0,89531.0,0.41214231]
[1764687644529,0.05808919,89532.0,89498.0,0.01117343]
[1764687644743,0.49389651,89520.0,89496.0,0.188756]
[1764687644983,0.0558472,89525.0,89469.0,0.188756]
[1764687644984,0.22346859,89499.0,89469.0,0.188756]
[1764687645215,0.04692,89487.0,89479.0,0.22351447]
[1764687645423,0.04692,89487.0,89486.0,0.188756]
[1764687645838,0.13757,89487.0,89482.0,0.188756]
[1764687646042,0.15621,89487.0,89484.0,0.188756]
[1764687646288,0.09065,89486.0,89478.0,0.41227353]
[1764687646506,0.10182493,89486.0,89470.0,0.188756]
[1764687646728,0.09065,89486.0,89470.0,0.188756]
[1764687646944,0.01864,89485.0,89474.0,0.188756]
[1764687647163,0.01864,89485.0,89484.0,0.188756]
[1764687647620,0.10929,89485.0,89484.0,0.188756]
[1764687647821,0.09065,89485.0,89482.0,0.22350665]
[1764687648022,0.10929,89485.0,89470.0,0.188756]
[1764687648407,0.01117555,89481.0,89470.0,0.188756]
[1764687648617,0.01117605,89477.0,89470.0,0.188756]
[1764687648838,0.10182568,89480.0,89470.0,0.188756]
[1764687649036,0.01117655,89473.0,89470.0,0.188756]
[1764687649171,0.24217527,89472.0,89470.0,0.188756]
[1764687649376,0.09065,89471.0,89470.0,0.188756]
[1764687650739,0.10925,89471.0,89470.0,0.188756]
[1764687653154,0.33278611,89471.0,89469.0,9.781e-05]
[1764687653553,0.09065,89470.0,89469.0,9.781e-05]
[1764687654324,0.10925,89470.0,89469.0,9.781e-05]
[1764687655549,0.09065,89470.0,89469.0,0.18885381]
[1764687656130,0.10921,89470.0,89469.0,0.18885381]
[1764687657519,0.04692,89471.0,89469.0,0.18885381]
[1764687657746,0.04692,89471.0,89470.0,0.41229461]
[1764687657975,0.09065,89484.0,89482.0,0.22350842]
[1764687658168,0.01712,89486.0,89484.0,0.41225964]
[1764687658343,0.01712,89486.0,89485.0,0.22350114]
[1764687658544,0.01712,89486.0,89484.0,0.22350215]
[1764687659132,0.04692,89501.0,89485.0,0.188756]
[1764687659344,0.01117393,89494.0,89475.0,0.0111763]
[1764687659492,0.22347694,89495.0,89414.0,0.0856144]
[1764687659493,0.23465041,89495.0,89474.0,0.188756]
[1764687659662,0.01117405,89493.0,89482.0,0.188756]
[1764687659866,0.01117405,89493.0,89479.0,0.188756]
[1764687660064,0.0111748,89487.0,89479.0,0.188756]
[1764687660277,0.01117655,89473.0,89470.0,0.188756]
[1764687660541,0.0495,89491.0,89470.0,0.188756]
[1764687660742,0.05809305,89501.0,89452.0,0.01235911]
[1764687660743,0.0495,89500.0,89490.0,0.188756]
[1764687660963,0.22347322,89497.0,89492.0,0.188756]
[1764687661165,0.22349765,89487.0,89470.0,0.188756]
[1764687661396,0.01856,89486.0,89470.0,0.188756]
[1764687661569,0.01856,89486.0,89473.0,0.22353002]
[1764687661714,0.01117543,89482.0,89470.0,0.188756]
[1764687661915,0.22351745,89479.0,89472.0,0.188756]
[1764687662129,0.01856,89478.0,89471.0,0.188756]
[1764687662337,0.01856,89478.0,89470.0,0.188756]
[1764687662552,0.0495,89477.0,89475.0,0.22352477]
[1764687662779,0.0495,89477.0,89469.0,9.781e-05]
[1764687662780,0.27297815,89495.0,89478.0,0.188756]
[1764687662988,0.02973393,89494.0,89483.0,0.188756]
[1764687663203,0.01856,89494.0,89484.0,0.188756]
[1764687663417,0.06806,89493.0,89482.0,0.188756]
[1764687663631,0.01856,89492.0,89487.0,0.188756]
[1764687663847,0.01856,89491.0,89488.0,0.188756]
[1764687664213,0.01856,89491.0,89484.0,0.22350139]
[1764687664414,0.01856,89491.0,89478.0,0.01117593]
[1764687664415,0.0495,89490.0,89483.0,0.188756]
[1764687664615,0.0495,89505.0,89499.0,0.22346379]
[1764687664850,0.00024161,89508.0,89507.0,0.41220221]
[1764687665050,0.04974161,89508.0,89493.0,0.41223668]
[1764687665172,0.00024161,89508.0,89497.0,0.188756]
[1764687665373,0.00024161,89508.0,89507.0,0.188756]
[1764687665796,0.00024161,89508.0,89507.0,0.18885381]
[1764687665993,0.00024161,89508.0,89507.0,0.60729381]
[1764687666577,0.00024161,89508.0,89507.0,0.51185381]
[1764687667057,0.04216161,89532.0,89531.0,0.41214231]
[1764687667272,0.09889992,89543.0,89542.0,0.22335887]
[1764687667698,0.14839992,89543.0,89528.0,0.01116968]
[1764687667867,0.0495,89542.0,89528.0,0.19992568]
[1764687668076,0.0495,89542.0,89530.0,0.188756]
[1764687668274,0.01116806,89541.0,89522.0,0.01117043]
[1764687668474,0.01116894,89534.0,89516.0,0.01117118]
[1764687668708,0.01116894,89534.0,89520.0,0.188756]
[1764687668913,0.01117031,89523.0,89508.0,0.188756]
[1764687669103,0.0111733,89499.0,89487.0,0.188756]
[1764687669309,0.04076206,89509.0,89491.0,0.0111743]
[1764687669524,0.01117393,89494.0,89483.0,0.188756]
[1764687669731,0.01117393,89494.0,89459.0,0.09544]
[1764687669732,0.0111748,89487.0,89480.0,0.188756]
[1764687669911,0.01117618,89476.0,89469.0,0.188756]
[1764687670131,0.22349798,89487.0,89476.0,0.188756]
[1764687670334,0.01852,89491.0,89471.0,0.188756]
[1764687670335,0.01117493,89486.0,89471.0,0.188756]
[1764687670549,0.09652,89490.0,89478.0,0.01117593]
[1764687670761,0.04695,89490.0,89489.0,0.188756]
[1764687671114,0.09652,89490.0,89487.0,0.188756]
[1764687671324,0.01116968,89528.0,89497.0,0.01117355]
[1764687671575,0.01117143,89514.0,89504.0,0.188756]
[1764687671741,0.01117056,89521.0,89506.0,0.01117243]
[1764687672093,0.01116944,89530.0,89516.0,0.01117118]
[1764687672220,0.01856,89528.0,89518.0,0.188756]
[1764687672421,0.0558472,89541.0,89518.0,0.188756]
[1764687672422,0.01116731,89547.0,89529.0,0.01116956]
[1764687672622,0.0495,89540.0,89531.0,0.188756]
[1764687672825,0.09995651,89543.0,89542.0,0.22335887]
[1764687673044,0.09995651,89543.0,89542.0,0.41211487]
[1764687674313,0.09995651,89543.0,89542.0,0.43067487]
[1764687674515,0.09995651,89543.0,89537.0,0.23453971]
[1764687674516,0.09995651,89543.0,89535.0,0.188756]
[1764687674649,0.09889992,89543.0,89526.0,0.01116993]
[1764687674854,0.09889992,89543.0,89539.0,0.01116831]
[1764687675053,0.22336025,89542.0,89540.0,0.188756]
[1764687675254,0.01117043,89522.0,89519.0,0.188756]
[1764687675452,0.02959,89520.0,89519.0,0.188756]
[1764687675846,0.01116719,89548.0,89530.0,0.01116944]
[1764687676045,0.01116744,89546.0,89541.0,0.188756]
[1764687676304,0.0495,89542.0,89533.0,0.188756]
[1764687676513,0.06066794,89542.0,89532.0,0.188756]
[1764687676719,0.0495,89542.0,89536.0,0.01116869]
[1764687676923,0.09889992,89543.0,89542.0,0.41211487]
[1764687677150,0.09889992,89543.0,89540.0,0.01116819]
[1764687677357,0.09889992,89543.0,89539.0,0.188756]
[1764687677502,0.09889992,89543.0,89538.0,0.188756]
[1764687677738,0.09889992,89543.0,89537.0,0.188756]
[1764687677939,0.11006773,89543.0,89533.0,0.01116906]
[1764687678283,0.09889992,89543.0,89542.0,0.188756]
[1764687678661,0.14839992,89543.0,89535.0,0.188756]
[1764687678998,0.01116869,89536.0,89529.0,0.01116956]
[1764687679208,0.01116894,89534.0,89527.0,0.188756]
[1764687679415,0.0495,89538.0,89526.0,0.01116993]
[1764687679621,0.01116894,89534.0,89523.0,0.4121614]
[1764687679842,0.01116931,89531.0,89523.0,0.188756]
[1764687680065,0.0495,89533.0,89519.0,0.188756]
[1764687680278,0.01117031,89523.0,89519.0,0.188756]
[1764687680503,0.22341376,89520.0,89519.0,0.188756]
[1764687680939,0.27291376,89520.0,89519.0,0.188756]
[1764687681148,0.01117031,89523.0,89404.0,0.0492]
[1764687681149,0.65928263,89500.0,89451.0,0.14464]
[1764687681346,0.01852,89499.0,89465.0,0.01117755]
[1764687681518,0.01117555,89481.0,89470.0,0.23471554]
[1764687681730,0.01117593,89478.0,89458.0,0.22356773]
[1764687681907,0.02645,89452.0,89451.0,0.00011383]
[1764687682108,0.01117818,89460.0,89451.0,0.00011383]
[1764687682316,0.01117743,89466.0,89451.0,0.00011383]
[1764687682317,0.02708,89462.0,89456.0,0.01117868]
[1764687682695,0.22350044,89486.0,89457.0,0.02235711]
[1764687682901,0.01117455,89489.0,89467.0,0.0111773]
[1764687683112,0.01117618,89476.0,89465.0,0.01117755]
[1764687683323,0.01117618,89476.0,89464.0,0.01117768]
[1764687686202,0.04896,89507.0,89493.0,0.02969405]
[1764687686389,0.06013231,89507.0,89498.0,0.01117343]
[1764687686611,0.04896,89507.0,89499.0,0.0111733]
[1764687686810,0.0495,89535.0,89512.0,0.01117168]
[1764687687011,0.0495,89535.0,89493.0,0.01852]
[1764687687012,0.02957,89532.0,89525.0,0.01117006]
[1764687687318,0.01116831,89539.0,89518.0,0.01117093]
[1764687687319,0.22336884,89538.0,89518.0,0.01117093]
[1764687687494,0.22336884,89538.0,89514.0,0.01852]
[1764687687495,0.22338041,89534.0,89514.0,0.01852]
[1764687687703,0.02957,89542.0,89508.0,0.02234437]
[1764687687704,0.01117006,89525.0,89508.0,0.02234437]
[1764687687907,0.22340377,89524.0,89508.0,0.02234437]
[1764687688114,0.01117006,89525.0,89512.0,0.01117168]
[1764687688252,0.01116993,89526.0,89515.0,0.01117131]
[1764687688472,0.01116856,89537.0,89526.0,0.01116993]
[1764687688668,0.01116881,89535.0,89527.0,0.22339519]
[1764687688875,0.01116856,89537.0,89521.0,0.2234092]
[1764687689095,0.06066831,89539.0,89527.0,0.01116981]
[1764687689317,0.01116856,89537.0,89532.0,0.01116919]
[1764687689517,0.01116856,89537.0,89531.0,0.01116931]
[1764687689518,0.01116869,89536.0,89531.0,0.01116931]
[1764687689753,0.01116856,89537.0,89531.0,0.01116931]
[1764687689937,0.2345465,89535.0,89529.0,0.01116956]
[1764687690236,0.01116919,89532.0,89524.0,0.23457308]
[1764687690467,0.01116931,89531.0,89526.0,0.01116993]
[1764687690666,0.01116931,89531.0,89515.0,0.22342523]
[1764687690667,0.02957,89542.0,89539.0,0.01116831]
[1764687690870,0.02957,89542.0,89534.0,0.01116894]
[1764687690871,0.01116806,89541.0,89534.0,0.01116894]
[1764687691049,0.01116806,89541.0,89525.0,0.22340061]
[1764687691050,0.01116881,89535.0,89525.0,0.22340061]
[1764687691192,0.01116844,89538.0,89525.0,0.01117006]
[1764687691552,0.02957,89542.0,89539.0,0.22336371]
[1764687691756,0.01116744,89546.0,89538.0,0.22336668]
[1764687691965,0.00096606,89540.0,89538.0,0.22336685]
[1764687692187,0.0299513,89542.0,89539.0,0.01116831]
[1764687692391,0.0299513,89542.0,89540.0,0.22336183]
[1764687692392,0.0003813,89542.0,89540.0,0.22336183]
[1764687692586,0.0003813,89542.0,89537.0,0.01116856]
[1764687692788,0.0003813,89542.0,89535.0,0.01116881]
[1764687692937,0.0003813,89542.0,89539.0,0.01116831]
[1764687693138,0.0003813,89542.0,89538.0,0.22336806]
[1764687693373,0.0003813,89542.0,89538.0,0.01116844]
[1764687693892,0.0003813,89542.0,89540.0,0.22336284]
[1764687694219,0.0003813,89542.0,89531.0,0.01116931]
[1764687694418,0.0003813,89542.0,89541.0,0.22336136]
[1764687694577,0.0003813,89542.0,89540.0,0.22336269]
[1764687694784,0.0003813,89542.0,89540.0,0.19542973]
[1764687694944,0.0003813,89542.0,89541.0,0.09807]
[1764687695149,0.0003813,89542.0,89541.0,0.16059299]
[1764687696237,0.0003813,89542.0,89541.0,0.48359299]
[1764687696440,0.0003813,89542.0,89540.0,0.19542973]
[1764687696441,0.03749733,89545.0,89544.0,2.16768187]
[1764687696636,0.04896,89600.0,89559.0,0.60883946]
[1764687696863,0.00131231,89561.0,89560.0,0.48274299]
[1764687697285,0.09264,89618.0,89560.0,0.50122299]
[1764687697479,0.04672,89594.0,89564.0,0.60882699]
[1764687697711,0.10702827,89607.0,89564.0,1.46504699]
[1764687697917,0.01116034,89603.0,89564.0,0.94948699]
[1764687698134,0.01116146,89594.0,89564.0,0.94948699]
[1764687698345,0.04412,89595.0,89564.0,0.94948699]
[1764687698346,0.13676,89595.0,89564.0,0.789744]
[1764687698557,0.11586808,89588.0,89564.0,0.662004]
[1764687698765,0.10470588,89588.0,89564.0,0.72452699]
[1764687698939,0.10470588,89588.0,89564.0,0.662004]
[1764687699140,0.01116245,89586.0,89564.0,0.662004]
[1764687699376,0.10470588,89588.0,89564.0,0.662044]
[1764687699550,0.10470588,89588.0,89564.0,0.643524]
[1764687699764,0.10470588,89588.0,89564.0,0.72456699]
[1764687700495,0.10470588,89588.0,89564.0,1.18967499]
[1764687700691,0.10470588,89588.0,89569.0,0.28581453]
[1764687700903,0.10470588,89588.0,89569.0,1.08094453]
[1764687701114,0.10470588,89588.0,89569.0,0.62502753]
[1764687701304,0.10470588,89588.0,89569.0,0.40151453]
[1764687701512,0.10470588,89588.0,89569.0,0.32051154]
[1764687701854,0.10470588,89588.0,89569.0,0.56477154]
[1764687702065,0.01116308,89581.0,89569.0,0.34148]
[1764687702336,0.01116382,89575.0,89569.0,0.01848]
[1764687702528,0.0111647,89568.0,89555.0,0.01116632]
[1764687702700,0.01116582,89559.0,89552.0,0.02233339]
[1764687702899,0.01116582,89559.0,89544.0,0.00011383]
[1764687702900,0.01116657,89553.0,89544.0,0.00011383]
[1764687703096,0.01116644,89554.0,89544.0,0.01128152]
[1764687703405,0.22335016,89546.0,89544.0,0.00011383]
[1764687703813,0.09264,89545.0,89544.0,0.00011383]
[1764687704368,0.31599138,89545.0,89544.0,0.00011383]
[1764687705689,0.09264,89545.0,89544.0,0.00011383]
[1764687705895,0.31599138,89545.0,89544.0,0.00011383]
[1764687706291,0.31599138,89545.0,89490.0,0.0492]
[1764687706292,0.23459653,89516.0,89511.0,0.01848]
[1764687706542,0.223432,89513.0,89511.0,0.0003813]
[1764687707115,0.09264,89515.0,89511.0,0.0003813]
[1764687707388,0.04672,89537.0,89523.0,0.01117031]
[1764687707600,0.01116682,89551.0,89535.0,0.01116881]
[1764687707751,0.01116769,89544.0,89528.0,0.323]
[1764687707964,0.01116794,89542.0,89529.0,0.02233913]
[1764687708170,0.01116831,89539.0,89529.0,0.02233913]
[1764687708369,0.00111694,89545.0,89539.0,0.01116831]
[1764687708575,0.01116657,89553.0,89546.0,0.01116744]
[1764687708800,0.01116694,89550.0,89540.0,0.23452978]
[1764687708984,0.22334871,89547.0,89536.0,0.01116869]
[1764687709369,0.01116657,89553.0,89541.0,0.01116806]
[1764687709572,0.09264,89564.0,89550.0,0.01116694]
[1764687709777,0.22333284,89553.0,89547.0,0.01116731]
[1764687709983,0.2344949,89555.0,89542.0,0.01116794]
[1764687710186,0.01116657,89553.0,89544.0,0.01116769]
[1764687710392,0.27001007,89558.0,89544.0,0.01116769]
[1764687710393,0.04669,89558.0,89548.0,0.01116719]
[1764687710599,0.323,89596.0,89541.0,0.00011387]
[1764687710600,0.09264,89557.0,89541.0,0.00011387]
[1764687710801,0.01116707,89549.0,89542.0,0.01848]
[1764687711451,0.09264,89557.0,89542.0,0.01848]
[1764687711452,0.04672,89568.0,89554.0,0.01116644]
[1764687711657,0.22330972,89562.0,89556.0,0.22332388]
[1764687711876,0.01116582,89559.0,89550.0,0.01116694]
[1764687712079,0.23448563,89558.0,89553.0,0.2344971]
[1764687712278,0.23448563,89558.0,89553.0,0.01116657]
[1764687712492,0.01116557,89561.0,89554.0,0.01116644]
[1764687712708,0.01116532,89563.0,89554.0,0.01116644]
[1764687712874,0.01116557,89561.0,89557.0,0.01116607]
[1764687713105,0.01116495,89566.0,89557.0,0.01116607]
[1764687713106,0.01116407,89573.0,89561.0,0.01116557]
[1764687713331,0.1023835,89570.0,89564.0,0.0111652]
[1764687713541,0.1023835,89570.0,89569.0,0.22329154]
[1764687714160,0.1023835,89570.0,89569.0,0.71703453]
[1764687714358,0.1023835,89570.0,89569.0,2.70603453]
[1764687714563,0.10425459,89570.0,89569.0,2.07660653]
[1764687714770,0.10425459,89570.0,89569.0,1.5755544]
[1764687714984,0.10425459,89570.0,89569.0,1.3789424]
[1764687715414,0.10425459,89570.0,89569.0,1.3115504]
[1764687715870,0.10425459,89570.0,89569.0,0.9962244]
[1764687719111,0.10425459,89570.0,89569.0,0.23440541]
[1764687719508,0.10425459,89570.0,89569.0,0.25284541]
[1764687719727,0.10425459,89570.0,89569.0,0.86967941]
[1764687720012,0.10425459,89570.0,89569.0,0.9137624]
[1764687720207,0.10425459,89570.0,89569.0,0.9322024]
[1764687720412,0.10425459,89570.0,89569.0,0.9137624]
[1764687720567,0.10425459,89570.0,89569.0,0.6383684]
[1764687720786,0.10425459,89570.0,89569.0,0.7355884]
[1764687721145,0.10425459,89570.0,89569.0,0.57584541]
[1764687721359,0.10425459,89570.0,89569.0,0.54640541]
[1764687721536,0.10425459,89570.0,89569.0,0.00011387]
[1764687721781,0.19689459,89570.0,89569.0,0.00011387]
[1764687722018,0.10425459,89570.0,89569.0,0.00011387]
[1764687722396,0.10425459,89570.0,89569.0,0.15985686]
[1764687722642,0.10425459,89570.0,89569.0,0.01859387]
[1764687722854,0.10425459,89570.0,89569.0,0.00011387]
[1764687723061,0.19689459,89570.0,89569.0,0.00011387]
[1764687723493,0.19600123,89570.0,89569.0,0.00011387]
[1764687724112,0.10336123,89570.0,89569.0,0.00011387]
[1764687724832,0.19600123,89570.0,89569.0,0.00011387]
[1764687725032,0.01116731,89547.0,89531.0,0.01116931]
[1764687725242,0.01116756,89545.0,89536.0,0.01116869]
[1764687725473,0.04639,89569.0,89558.0,0.01116594]
[1764687725668,0.04639,89569.0,89567.0,0.22329599]
[1764687725901,0.10149014,89570.0,89569.0,0.22329154]
[1764687726102,0.10149014,89570.0,89569.0,0.63114368]
[1764687726305,0.10336123,89570.0,89569.0,0.70005453]
[1764687726713,1e-08,89570.0,89569.0,2.64245344]
[1764687726884,1e-08,89579.0,89577.0,0.28579458]
[1764687727085,1e-08,89579.0,89578.0,2.33127319]
[1764687727284,1e-08,89579.0,89578.0,2.27357719]
[1764687727736,0.0002715,89579.0,89578.0,1.74820119]
[1764687727944,0.0002715,89579.0,89578.0,1.27018419]
[1764687728367,5.3e-07,89580.0,89579.0,1.4250056]
[1764687728564,5.3e-07,89580.0,89579.0,1.3390726]
[1764687728767,0.00024298,89590.0,89589.0,0.60876468]
[1764687728982,0.10702827,89607.0,89599.0,0.06252299]
[1764687729145,0.11167303,89643.0,89615.0,0.72508591]
[1764687729535,0.11167303,89643.0,89615.0,0.83480591]
[1764687730140,0.11167303,89643.0,89615.0,0.83491982]
[1764687730680,0.11167303,89643.0,89615.0,0.81643982]
[1764687730888,0.01115685,89631.0,89615.0,0.70005382]
[1764687731089,0.01115685,89631.0,89615.0,0.00011391]
[1764687731090,0.42677389,89616.0,89615.0,0.00011391]
[1764687732176,0.10818946,89616.0,89615.0,0.00011391]
[1764687732583,0.10818946,89616.0,89615.0,0.34163391]
[1764687732782,0.10818946,89616.0,89615.0,0.77689111]
[1764687733000,0.10818946,89616.0,89615.0,0.8394141]
[1764687733202,0.10818946,89616.0,89615.0,0.5512441]
[1764687734065,0.10818946,89616.0,89615.0,2.5327241]
[1764687734258,0.10818946,89616.0,89615.0,0.5512041]
[1764687734486,0.10818946,89616.0,89615.0,2.5512041]
[1764687734703,0.005,89650.0,89622.0,0.01115797]
[1764687734902,0.005,89650.0,89624.0,2.38552299]
[1764687735349,0.005,89650.0,89624.0,2.47676299]
[1764687737152,0.01115461,89649.0,89624.0,2.323]
[1764687737357,0.01115511,89645.0,89624.0,2.43272]
[1764687737558,0.01115697,89630.0,89624.0,0.01848]
[1764687737783,0.12050825,89625.0,89616.0,0.22317443]
[1764687737982,0.10935065,89625.0,89618.0,0.01115847]
[1764687738158,0.10935065,89625.0,89623.0,0.22315453]
[1764687739279,0.10935065,89625.0,89624.0,2.47676299]
[1764687741323,0.10935065,89625.0,89624.0,2.38552299]
[1764687741545,0.10935065,89625.0,89624.0,0.40396299]
[1764687741750,0.11073749,89625.0,89624.0,2.49520299]
[1764687743198,0.11073749,89625.0,89624.0,0.38552299]
[1764687743421,0.11073749,89625.0,89624.0,2.49520299]
[1764687743642,0.11073749,89625.0,89624.0,2.40396299]
[1764687743831,0.11073749,89625.0,89624.0,2.49520299]
[1764687744792,0.11073749,89625.0,89624.0,2.40396299]
[1764687744987,0.11073749,89625.0,89624.0,0.40396299]
[1764687745190,0.11073749,89625.0,89624.0,0.24159451]
[1764687745384,0.11073749,89625.0,89624.0,0.01844]
[1764687745790,0.11073749,89625.0,89624.0,0.34144]
[1764687746010,0.11073749,89625.0,89624.0,2.49520299]
[1764687746875,0.0081,89657.0,89642.0,0.2231097]
[1764687747075,0.0081,89657.0,89642.0,2.5461097]
[1764687747303,0.11221545,89643.0,89641.0,0.22311167]
[1764687747513,0.11167303,89643.0,89638.0,0.0558472]
[1764687747720,0.22311591,89640.0,89631.0,0.0223137]
[1764687747932,0.01115847,89618.0,89609.0,0.01115959]
[1764687748132,0.09541,89639.0,89603.0,0.02697]
[1764687748349,0.00038191,89640.0,89638.0,0.22311871]
[1764687748551,0.00038191,89640.0,89639.0,0.02231171]
[1764687748749,0.00038191,89640.0,89639.0,2.1760747]
[1764687749051,0.00038191,89640.0,89639.0,2.06252299]
[1764687749223,0.00038191,89640.0,89639.0,2.15376299]
[1764687749429,0.00038191,89640.0,89639.0,2.06252299]
[1764687749967,0.00038191,89640.0,89639.0,0.24155716]
[1764687750113,0.00038191,89640.0,89639.0,0.01844]
[1764687750315,0.0111576,89625.0,89615.0,0.01115884]
[1764687750529,0.01115648,89634.0,89618.0,0.01115847]
[1764687750727,0.22313544,89632.0,89622.0,0.01115797]
[1764687750905,0.00038191,89640.0,89630.0,0.01115697]
[1764687751105,0.00038191,89640.0,89638.0,0.22311847]
[1764687751578,0.00038191,89640.0,89638.0,0.22311903]
[1764687751991,0.00038191,89640.0,89638.0,0.22311827]
[1764687753372,0.01153764,89640.0,89629.0,0.22314057]
[1764687753589,0.23427351,89639.0,89635.0,0.23428264]
[1764687753748,0.00038191,89640.0,89638.0,0.22311914]
[1764687754149,0.00038191,89640.0,89637.0,0.0111561]
[1764687754350,0.02393,89638.0,89637.0,0.0111561]
[1764687754553,0.00038191,89640.0,89638.0,0.22311965]
[1764687754779,0.00038191,89640.0,89638.0,0.24543161]
[1764687754940,0.00038191,89640.0,89638.0,0.34395161]
[1764687755140,0.00038191,89640.0,89638.0,0.32163965]
[1764687755339,0.00038191,89640.0,89639.0,0.02697]
[1764687755809,0.00038191,89640.0,89639.0,0.08949299]
[1764687756092,0.00038191,89640.0,89639.0,0.02697]
[1764687756397,0.00038191,89640.0,89639.0,0.04928171]
[1764687756939,0.00038191,89640.0,89639.0,0.02697]
[1764687757163,0.00038191,89640.0,89639.0,0.04537]
[1764687757776,0.00038191,89640.0,89639.0,0.2229347]
[1764687757983,0.00038191,89640.0,89639.0,0.06768171]
[1764687758352,0.00038191,89640.0,89639.0,0.2229347]
[1764687759165,0.00038191,89640.0,89639.0,0.2852747]
[1764687759365,0.00038191,89640.0,89639.0,0.26296299]
[1764687759622,0.00083395,89640.0,89639.0,0.26296299]
[1764687759825,0.00083395,89640.0,89639.0,0.48608015]
[1764687760042,0.00083395,89640.0,89639.0,2.48608015]
[1764687760455,0.00083395,89640.0,89639.0,0.26848716]
[1764687761452,0.00083395,89640.0,89639.0,2.48608015]
[1764687761671,0.00083395,89640.0,89639.0,2.80908015]
[1764687765062,0.00083395,89640.0,89639.0,2.94218346]
[1764687765482,0.00083395,89640.0,89639.0,2.80908015]
[1764687768904,0.00083395,89640.0,89639.0,2.92698015]
[1764687769105,0.00083395,89640.0,89639.0,2.80908015]
[1764687769330,0.00083395,89640.0,89639.0,2.74647716]
[1764687769478,0.00083395,89640.0,89639.0,2.65374716]
[1764687770095,0.00083395,89640.0,89639.0,2.74647716]
[1764687770319,0.00083395,89640.0,89639.0,2.80900015]
[1764687772245,0.00083395,89640.0,89639.0,2.79068015]
[1764687772442,0.00083395,89640.0,89639.0,2.80900015]
[1764687773835,0.10350698,89643.0,89642.0,2.60863269]
[1764687774101,0.10350698,89643.0,89642.0,2.6710866]
[1764687774298,0.10350698,89643.0,89642.0,2.7638166]